Workbook

Sheet Hinweise
A1: Hinweise:
A3: - | B3: Positionen mit 0,00€ nicht löschen, sondern bestehen lassen -> es könnte sein das diese Posten in den folgenden Jahren wieder benötigt werden und auch damit nicht in Vergessenheit gerät was es mal gab
A7: - | B7: Die Summe der fortgeschriebenen finanziellen Mittel müssen immer manuell ins Deckblatt des nächsten Haushaltsjahres eingetragen werden.
A8: - | B8: Die Auflistung der fortgeschriebenen finanziellen Mittel im Detailblatt 1 und in den einzelnen Referaten dient als Übersicht, welcher Betrag übernommen werden muss.
A10: - | B10: Somit bildet die Spalte "Übertrag ins nächste HH-Jahr" des jeweiligen Jahres das "Nachrangig verwendbares Vj..-Budget" des nächsten Jahres.
A11: - | B11: Die Spalte "Zurückführung" errechnet sich aus dem nicht verwendeten "Nachrangigen Vj..-Budget" und gilt immer für das nächste Jahr.
A15: - | B15: WICHTIG:
B16: Der Haushaltsplan des Vorjahres, welcher maßgeblich für die Zahlen des neu geplanten Haushaltsplans ist, muss nach Abschluss des ersten Quartals endgültig auf die IST-Werte angepasst werden.
B17: Daraus sollte sich der erste Nachtragshaushalt ergeben, woraus sich wiederum eine Anpassung des Semesterbeitrags für das WS ergeben könnte.
B19: Für die Ermittlung der angeordneten Vermögensänderung des StuRa werden die geplanten Einnahmen als Obergrenze zu Grunde gelegt. Als Einnahmen werden dabei die vom Deckblatt berücksichtigt.
B20: Die Einnahmen aus der Selbstverwaltung, die Zinsen und die Beitragseinnahmen der Studierenden abzüglich der Zurückführung an Studierende.
B21: Den daraus ermittelten Einnahmen werden die noch verfügbaren finanziellen Mittel entgegengestellt, sind diese größer als die geplanten Einnahmen, so ergibt sich die Vermögensänderung auf der Einnahmenseite.
B22: Für die Ermittlung der angeordneten Vermögensänderung des StuRa auf der Ausgabenseite, werden die verfügbaren finanziellen Mittel mit der Mindestreserve verglichen.
B23: Sind diese kleiner als die Mindestreserve, so bildet die Differenz den Betrag der Vermögensänderung.

Sheet Deckblatt
A1: Haushaltsplan 2020 Studierendenschaft HTW Dresden | C1: Einnahmen | F1: Ausgaben
C2: PLAN | D2: IST | E2: SALDO | F2: PLAN | G2: IST | H2: SALDO
A3: Selbstverwaltung | C3: ='Detailblatt I'!J53 -> 60775 | D3: ='Detailblatt I'!K53 -> 1312.48 | E3: =D3-C3 -> -59462.52 | F3: ='Detailblatt I'!M53 -> 258820 | G3: ='Detailblatt I'!N53 -> 52278.74 | H3: =(F3-G3) -> 206541.26
A4: Beitragseinnahmen der Studierenden | C4: ='Detailblatt II'!F16 -> 145500 | D4: ='Detailblatt II'!G16 -> 92746 | E4: =D4-C4 -> -52754 | F4: ='Detailblatt II'!I16 -> 0 | G4: ='Detailblatt II'!J16 -> 0 | H4: =(F4-G4) -> 0
A5: Zinsen | C5: ='Detailblatt II'!F20 -> 0 | D5: ='Detailblatt II'!G20 -> 0 | E5: 0 | F5: ='Detailblatt II'!I20 -> 0 | G5: ='Detailblatt II'!J20 -> 0 | H5: =(F5-G5) -> 0
A6: Entnahme (=Einnahme) Ansparen (=Ausgabe) | B6: von Vermögen | C6: =IF((Beitragsermittlung!B16)-('Detailblatt II'!F14+'Detailblatt II'!F15)>0,(Beitragsermittlung!B16)-('Detailblatt II'!F14+'Detailblatt II'!F15),0) -> 26705 | D6: 0 | E6: -26705 | F6: 0 | G6: ='Detailblatt II'!G21 -> 0 | H6: =(F6-G6) -> 0
A7: angeordnete Vermögensänderung lt. FO | C7: =Beitragsermittlung!B14 -> 0 | E7: 0 | F7: ='Detailblatt II'!I19 -> 0 | H7: =(F7-G7) -> 0
A8: Zurückführung an Studierende (StuRa) | C8: 25840 | D8: =C8 -> 25840 | E8: =D8-C8 -> 0
A10: Gesamt: | C10: =SUM(C3:C9) -> 258820 | D10: 119898.48 | E10: -138921.52 | F10: =SUM(F3:F9) -> 258820 | G10: 52278.74 | H10: 206541.26
A11: Berechnung des Semesterbeitrag:
B12: Planausgaben: | C12: =F10 -> 258820 | E12: In Zeile F6 (Ansparung) manuell einzutragen: | H12: =IF(Deckblatt!C10-Deckblatt!F10>0,Deckblatt!C10-Deckblatt!F10+F6,IF(C10=F10,"Haushaltsplan ist ausgeglichen!","Haushaltsplan ist nicht ausgeglichen!")) -> Haushaltsplan ist ausgeglichen!
A13: - | B13: Planeinnahmen: | C13: =C3+C5 -> 60775
A14: - | B14: Zurückführung: | C14: =C8+C9 -> 25840
A15: - | B15: Vermögensänderung | C15: =C7 -> 0
A16: = | B16: Gesamt: | C16: =C12-C13-C14-C15-F6 -> 172205
A17: / | B17: Beitragszahlungen/Jahr: | C17: ='Detailblatt II'!D14+('Detailblatt II'!D15/6*4) -> 7284
A18: = | B18: Stud./Semester: | C18: =IF((C16-'Detailblatt II'!F13)/Deckblatt!C17<0,0,(C16-'Detailblatt II'!F13)/Deckblatt!C17) -> 19.81123009 | D18: Anzusetzender Semesterbeitrag: | F18: =ROUND((C18*2),0)/2 -> 20

Sheet Beitragsermittlung
A1: Ermittlung des Beitrages in Bezug auf die angeordnete Vermögensänderung
A3: Geplante Einnahmen | B3: =Deckblatt!F10-Deckblatt!C8-Deckblatt!C9-Deckblatt!F6 -> 232980
A4: verfügbare finanzielle Mittel | B4: ='fortgeschr. Mittel+Konto'!D9 -> 133211.56
A5: Obergrenze finanzielle Mittel | B5: =IF(B3<B4,B3,B4) -> 133211.56
A7: Vorgesehene Vermögenssenkung wegen zu hoher verfügbarer finanzieller Mittel | B7: =IF(Beitragsermittlung!B4>Deckblatt!F10-Deckblatt!F6,Beitragsermittlung!B4-Beitragsermittlung!B5,0) -> 0
A8: Mindestreserve | B8: =Mindestreserve!D17 -> 121710
A9: (Verfügbare finanzielle Mittel nach Vermögensenkung) | B9: =B4-B7 -> 133211.56
A10: Untergrenze für verfügbare finanzielle Mittel durch Bemessung an der Mindestreserve wird erreicht | B10: =IF(B5<B8,B8,B5) -> 133211.56
A11: beabsichtigte Senkung der verfügbaren finanziellen Mittel | B11: =B4-B10 -> 0
A13: Obergrenze für verpflichtende Vermögenssenkung entgegen der (negativen) Erhebung von Beiträgen | B13: =IF(Beitragsermittlung!B11>(Deckblatt!F10-Deckblatt!F6-(Deckblatt!C3+Deckblatt!C5+Deckblatt!C8+Deckblatt!C9+'Detailblatt II'!F13)),Deckblatt!F10-Deckblatt!F6-(Deckblatt!C3+Deckblatt!C5+Deckblatt!C8+Deckblatt!C9+'Detailblatt II'!F13),Beitragsermittlung!B11) -> 0
A14: Vermögenssenkung wegen übermäßig verfügbarer finanzieller Mittel ohne negativem Semesterbeitrag | B14: =IF(B13<0,0,B13) -> 0
A16: restlich zu vereinnahmender Semesterbeitrag ab dem nächsten Sommersemester | B16: =(Deckblatt!F3+Deckblatt!F5+Deckblatt!F7+Deckblatt!F4)-(Deckblatt!C13+Deckblatt!C14+Deckblatt!C15+'Detailblatt II'!F13) -> 144305

Sheet fortgeschr. Mittel+Konto
A1: Fortgeschriebene finanzielle Mittel + Bankkontostand | C1: Jahr - | D1: ='Detailblatt I'!F1 -> 2020
F2: Nr. | G2: voraussichtliche Ausgaben | I2: Saldo
B3: Position | C3: erstellt am: | D3: Saldo | F3: 1. | G3: Personal (Nov.+Dez. inkl. 13.Gehalt, ACON, Finanzamt) | I3: 0
B4: Bank-/Kassenbestand bei Haushaltsplanerstellung | D4: =2188.92+49+7.57+895692.44+60000 -> 957937.93
A5: - | B5: abzgl. voraussichtliche Ausgaben | D5: =I24*(-1) -> -702746.1 | F5: 2. | G5: Finanzbeschlüsse aktuell noch nicht bezahlt in Summe | I5: 0
A6: - | B6: nachrangig verwendbares Vorjahresbudget | D6: ='Detailblatt I'!P53*(-1)-'Detailblatt I'!Q53*(-1) -> -37610.66
A7: - | B7: Zurückführung an Studierende gesamt | D7: =SUM(Deckblatt!C8:C9)*-1 -> -25840 | F7: 3. | G7: Schulungen/Konferenzen (KoSe) | I7: 0
A8: - | B8: Beitragseinnahmen anteilig WS 20/21 für 2021 | D8: =-90312.5-1312.48+33095.37 -> -58529.61 | F8: 4. | G8: voraussichtliche AE | I8: 0
A9: = | B9: verfügbare finanzielle Mittel | D9: =D4+D5+D6+D7+D8 -> 133211.56 | F9: 5. | G9: offene Härtefallanträge | I9: 0
F10: 6. | G10: Software-Abos (AGENDA etc.) | I10: 0
F11: 7. | G11: Kosten für Wartung (Drucker etc.) | I11: 0
F12: 8. | G12: Kontoführung | I12: 0
F13: 9. | G13: Kino in der HTW & Co. | I13: 0
F14: 10. | G14: Kosten für Wahlen | I14: 0
F15: 11. | G15: Kaffeebestellung(en) | I15: 0
F16: 12. | G16: Ersatz- & Neuanschaffung | I16: 0
F17: 13. | G17: wahrscheinlich noch zu beschließende Finanzanträge | I17: 0
F19: 14. | G19: Semesterticket Konto 1591 & 1592 | I19: =702922.5-176.4 -> 702746.1
F21: 15. | G21: Konto 1704 | I21: 0
F22: 16. | G22: Konto 1450 (-) | I22: 0
F23: 17. | G23: Ausgaben der FSRä | I23: 0
F24: = | G24: Gesamtsumme: | I24: =SUM(I3:I23) -> 702746.1

Sheet Mindestreserve
A1: Mindestreserve | D1: Jahr - | E1: ='Detailblatt I'!F1 -> 2020 | F1: Berechnungsgrundlage ist die aktuelle Finanzordnung (FO)
G2: - alle vertraglich festgeschriebenen Vereinbarungen müssen durch die Kapitalreserve abgedeckt sein
A3: vertragliche Vereinbarungen | D3: Planausgaben
A4: Studentinnen- und Studentenrat
A5: Lohnkosten (Detailblatt I - Zelle M7) | D5: ='Detailblatt I'!M7 -> 119560
A6: …aktuell ohne Belegung…
A7: …aktuell ohne Belegung… | D7: ------
A8: Referat Finanzen
A9: Kontoführungsgebühren | D9: =Finanzen!G3 -> 400
A10: Buchhaltungssoftware AGENDA | D10: =Finanzen!G4 -> 1000
A11: …aktuell ohne Belegung… | D11: ------
A12: Referat Selbstverwaltung & Organisation
A13: Domains | D13: ='Studentische Verwaltung'!F4 -> 50
A14: laufende Kosten (Druck, Wartung) | D14: ='Studentische Verwaltung'!F14 -> 700
A15: …aktuell ohne Belegung… | D15: ------
A16: …aktuell ohne Belegung… | D16: ------
A17: Gesamt: | D17: =SUM(D5:E16) -> 121710

Sheet Detailblatt I
A1: Detailblatt I | E1: Jahr - | F1: 2020 | J1: Einnahmen | M1: Ausgaben | P1: nachrangig verwendbares Vj. Budget | Q1: davon verwendet | R1: Zuführung "Fortgeschr. finanz. Mittel" | S1: Übertrag ins nächste HH-Jahr
J2: PLAN | K2: IST | L2: SALDO | M2: PLAN | N2: IST | O2: SALDO
A3: Selbstverwaltung der Studentinnen- und Studentenschaft HTW Dresden
A4: Studentinnen- und Studentenrat
A5: Sachkontonr.
A6: 2749 | B6: Angestellte | C6: AAG | K6: 395.98 | L6: =K6 -> 395.98
A7: 4120 | C7: Gehälter | M7: 119560 | N7: 33860.75 | O7: =M7-SUM(N7:N10)+L6 -> 78171.95
A8: 4130 | C8: gesetzl. sozial. Aufw. | N8: 7579.85
A9: 4138 | C9: Beitrag BG | N9: 0
A10: 4956 | C10: Acon GmbH (Lohnabr.) | N10: 343.43
A11: 4110 | B11: (AE) Aufwandsentschädigungen | M11: 16000 | N11: 3376.71 | O11: =M11-N11 -> 12623.29
A12: 4640 | B12: Kaffee & Verpflegung | M12: 1200 | N12: 404.16 | O12: 795.84
A13: 4670 | B13: Allgemeine Reisekosten (die keiner Veranstaltung zugeordnet sind) | M13: 500 | N13: 0 | O13: =M13-N13 -> 500
A14: 4909 | B14: Sprecherinnen und Sprecher | M14: 0 | N14: 0 | O14: 0
A15: 4930 | B15: Büro- und Verbrauchsmaterialien | M15: 200 | N15: 1.7 | O15: 198.3 | P15: 10 | Q15: =IF(O15<0,IF(P15>0,IF((O15*(-1))>P15,P15,O15*(-1)),0),0) -> 0 | R15: =IF(OR(Q15>P15,O15+P15<0),makro1(),ROUNDDOWN(P15-Q15,-1)) -> 10 | S15: =IF(O15>0,ROUNDDOWN(O15,-1),0) -> 190
A16: 4943 | B16: Teilnahme Konferenzen | M16: 2000 | N16: 791.88 | O16: 1208.12 | P16: 0 | Q16: =IF(O16<0,IF(P16>0,IF((O16*(-1))>P16,P16,O16*(-1)),0),0) -> 0 | R16: =IF(OR(Q16>P16,O16+P16<0),makro1(),ROUNDDOWN(P16-Q16,-1)) -> 0 | S16: =IF(O16>0,ROUNDDOWN(O16,-1),0) -> 1200
A17: 4944 | B17: Teilnahme Schulungen | M17: 500 | N17: 0 | O17: 500 | P17: 640 | Q17: 0 | R17: =IF(OR(Q17>P17,O17+P17<0),makro1(),ROUNDDOWN(P17-Q17,-1)) -> 640 | S17: =IF(O17>0,ROUNDDOWN(O17,-1),0) -> 500
A18: 4945 | B18: Durchführung Konferenzen | J18: =Konferenzen!C7 -> 44525 | K18: =Konferenzen!D7 -> 0 | L18: =K18-J18 -> -44525 | M18: =Konferenzen!F7 -> 47275 | N18: =Konferenzen!G7 -> 0 | O18: 47275 | P18: =Konferenzen!I7 -> 2000 | Q18: =Konferenzen!J7 -> 0 | R18: =Konferenzen!K7 -> 2000 | S18: =Konferenzen!L7 -> 1500
A19: 4950 | B19: Rechts- und Beratungskosten | M19: 1500 | N19: 0 | O19: 1500 | P19: 10 | Q19: =IF(O19<0,IF(P19>0,IF((O19*(-1))>P19,P19,O19*(-1)),0),0) -> 0 | R19: =IF(OR(Q19>P19,O19+P19<0),makro1(),ROUNDDOWN(P19-Q19,-1)) -> 10 | S19: =IF(O19>0,ROUNDDOWN(O19,-1),0) -> 1500
A20: 4989 | B20: Ersatz- und Neuanschaffung | M20: 2000 | N20: 410.04 | O20: 1589.96 | P20: 1910 | Q20: 0 | R20: =IF(OR(Q20>P20,O20+P20<0),makro1(),ROUNDDOWN(P20-Q20,-1)) -> 1910 | S20: =IF(O20>0,ROUNDDOWN(O20,-1),0) -> 1580
A21: Zwischensumme: | J21: =SUM(J6:J20) -> 44525 | K21: =SUM(K6:K20) -> 395.98 | L21: -44129.02 | M21: =SUM(M6:M20) -> 190735 | N21: 46768.52 | O21: 144362.46 | P21: =SUM(P15:P20) -> 4570 | Q21: =SUM(Q15:Q20) -> 0 | R21: =SUM(R15:R20) -> 4570 | S21: =SUM(S15:S20) -> 6470
A22: Referate
A23: 4955/4970 | B23: Finanzen | J23: =Finanzen!D6 -> 0 | K23: =Finanzen!E6 -> 0 | L23: =K23-J23 -> 0 | M23: =Finanzen!G6 -> 1650 | N23: =Finanzen!H6 -> 769.14 | O23: =M23-N23 -> 880.86
A24: 4961 | B24: Hochschulpolitik | J24: =Hochschulpolitik!C8 -> 0 | K24: =Hochschulpolitik!D8 -> 0 | L24: =K24-J24 -> 0 | M24: =Hochschulpolitik!F8 -> 850 | N24: =Hochschulpolitik!G8 -> 150 | O24: 700 | P24: =Hochschulpolitik!I8 -> 770 | Q24: =Hochschulpolitik!J8 -> 0 | R24: =Hochschulpolitik!K8 -> 770 | S24: =Hochschulpolitik!L8 -> 700
A25: 4962 | B25: Internationales | J25: =Internationales!C7 -> 0 | K25: =Internationales!D7 -> 0 | L25: 0 | M25: =Internationales!F7 -> 700 | N25: =Internationales!G7 -> 50 | O25: 650 | P25: =Internationales!I7 -> 0 | Q25: =Internationales!J7 -> 0 | R25: =Internationales!K7 -> 0 | S25: =Internationales!L7 -> 400
A26: 4963 | B26: Kultur | J26: =Kultur!C14 -> 12800 | K26: =Kultur!D14 -> 802.5 | L26: -11997.5 | M26: =Kultur!F14 -> 17700 | N26: =Kultur!G14 -> 651.33 | O26: 17048.67 | P26: =Kultur!I14 -> 1760 | Q26: =Kultur!J14 -> 0 | R26: =Kultur!K14 -> 1760 | S26: =Kultur!L14 -> 17040
A27: 4964 | B27: Öffentlichkeitsarbeit | J27: =Öffentlichkeitsarbeit!C9 -> 500 | K27: =Öffentlichkeitsarbeit!D9 -> 60 | L27: -440 | M27: =Öffentlichkeitsarbeit!F9 -> 2900 | N27: =Öffentlichkeitsarbeit!G9 -> 1011.16 | O27: 1888.84 | P27: =Öffentlichkeitsarbeit!I9 -> 2600 | Q27: =Öffentlichkeitsarbeit!J9 -> 0 | R27: =Öffentlichkeitsarbeit!K9 -> 2600 | S27: =Öffentlichkeitsarbeit!L9 -> 1870
A28: 4965 | B28: Qualitätsmanagement | J28: =Qualitätsmanagement!C6 -> 0 | K28: =Qualitätsmanagement!D6 -> 0 | L28: 0 | M28: =Qualitätsmanagement!F6 -> 2250 | N28: =Qualitätsmanagement!G6 -> 0 | O28: 2250 | P28: =Qualitätsmanagement!I6 -> 2190 | Q28: =Qualitätsmanagement!J6 -> 0 | R28: =Qualitätsmanagement!K6 -> 2190 | S28: =Qualitätsmanagement!L6 -> 2000
A29: 4966 | B29: Soziales | J29: =Soziales!C8 -> 0 | K29: =Soziales!D8 -> 0 | L29: 0 | M29: =Soziales!F8 -> 15650 | N29: =Soziales!G8 -> 0 | O29: 15650 | P29: =Soziales!I8 -> 1020 | Q29: =Soziales!J8 -> 0 | R29: =Soziales!K8 -> 1020 | S29: =Soziales!L8 -> 450
A30: 4967 | B30: Sport | J30: =Sport!C9 -> 0 | K30: =Sport!D9 -> 0 | L30: 0 | M30: =Sport!F9 -> 500 | N30: =Sport!G9 -> 0 | O30: 500 | P30: =Sport!I9 -> 1050 | Q30: =Sport!J9 -> 0 | R30: =Sport!K9 -> 1050 | S30: =Sport!L9 -> 500
A31: 4968 | B31: Studium | J31: =Studium!C6 -> 0 | K31: =Studium!D6 -> 0 | L31: 0 | M31: =Studium!F6 -> 200 | N31: =Studium!G6 -> 0 | O31: 200 | P31: =Studium!I6 -> 0 | Q31: =Studium!J6 -> 0 | R31: =Studium!K6 -> 0 | S31: =Studium!L6 -> 0
A32: 4969 | B32: Studentische Selbstverwaltung & Organisation | J32: ='Studentische Verwaltung'!C15 -> 1300 | K32: ='Studentische Verwaltung'!D15 -> 54 | L32: -1246 | M32: ='Studentische Verwaltung'!F15 -> 3835 | N32: ='Studentische Verwaltung'!G15 -> 168.09 | O32: 3666.91 | P32: ='Studentische Verwaltung'!I15 -> 18140 | Q32: ='Studentische Verwaltung'!J15 -> 9.34 | R32: ='Studentische Verwaltung'!K15 -> 18130 | S32: ='Studentische Verwaltung'!L15 -> 3670
A33: 4946 | B33: Personal | J33: =Personal!C21 -> 1650 | K33: ='Studentische Verwaltung'!D16 -> 0 | L33: =K33-J33 -> -1650 | M33: =Personal!F21 -> 8350 | N33: ='Studentische Verwaltung'!G16 -> 0 | O33: =M33-N33 -> 8350 | P33: =Personal!I21 -> 1970 | Q33: ='Studentische Verwaltung'!J16 -> 0 | R33: =Personal!K21 -> 1970 | S33: =Personal!L21 -> 8100
A34: ---- | B34: Ausschüsse des Studentinnen- und Studentenrates | J34: 0 | K34: 0 | L34: 0 | M34: 0 | N34: 0 | O34: 0
A35: ---- | B35: weitere Vertretungen | J35: 0 | K35: 0 | L35: 0 | M35: 0 | N35: 0 | O35: 0
A36: Zwischensumme: | J36: =SUM(J23:J35) -> 16250 | K36: =SUM(K23:K35) -> 916.5 | L36: =SUM(L23:L35) -> -15333.5 | M36: =SUM(M23:M35) -> 54585 | N36: =SUM(N23:N35) -> 2799.72 | O36: 51785.28 | P36: =SUM(P24:P33) -> 29500 | Q36: =SUM(Q24:Q33) -> 9.34 | R36: =SUM(R24:R33) -> 29490 | S36: =SUM(S24:S33) -> 34730
A37: Ausschüsse der Studentinnen- und Studentenschaft
A38: ---- | B38: weitere Ausschüsse der Studentinnen- und Studentenschaft | M38: 0 | N38: 0 | O38: =M38-N38 -> 0
A39: ---- | B39: Wahlausschuss der Studentinnen- und Studentenschaft | M39: 0 | N39: 0 | O39: =M39-N39 -> 0
A40: 4941 | B40: (HFA) Härtefallausschuss der Studentinnen- & Studentenschaft | M40: 3000 | N40: 1460 | O40: =M40-N40 -> 1540
A41: Zwischensumme: | M41: =SUM(M38:M40) -> 3000 | N41: =SUM(N38:N40) -> 1460 | O41: =SUM(O38:O40) -> 1540
A43: Anzahl der Studierenden im: | F43: WiSe | G43: 20/21 | H43: SoSe | I43: 2020
A44: gesamt: | F44: 4650 | H44: 4100
A45: #4942 Absicherung Teilnahme BuFaTas lt. Finanzordnung: | I45: 0.5 | M45: =ROUND(($F$44+$H$44)*$I$45,-2) -> 4400 | N45: 0 | O45: =M45-N45 -> 4400 | P45: 3550 | Q45: =IF(O45<0,IF(P45>0,IF((O45*(-1))>P45,P45,O45*(-1)),0),0) -> 0 | R45: =IF(OR(Q45>P45,O45+P45<0),makro1(),ROUNDDOWN(P45-Q45,-1)) -> 3550 | S45: =IF(O45>0,ROUNDDOWN(O45,-1),0) -> 4400
A46: Zwischensumme: | M46: =SUM(M45:M45) -> 4400 | N46: =SUM(N45:N45) -> 0 | O46: =SUM(O45:O45) -> 4400 | P46: =SUM(P45) -> 3550 | Q46: =SUM(Q45) -> 0 | R46: =SUM(R45:R45) -> 3550 | S46: =SUM(S45) -> 4400
A47: Vertretungen der Studentinnen und Studenten
A48: ---- | B48: Vertretungen der Studentinnen und Studenten in der Hochschule | M48: 0 | N48: 0 | O48: =M48-N48 -> 0
A49: ---- | B49: Konferenz Sächsischer Studierendenschaft | M49: ='Detailblatt II'!I6 -> 2000 | N49: ='Detailblatt II'!J6 -> 0 | O49: =M49-N49 -> 2000
A50: ---- | B50: Interessenvertretungen der Studentinnen- und Studentenschaft | M50: ='Detailblatt II'!I11 -> 4100 | N50: ='Detailblatt II'!J11 -> 1250.5 | O50: =M50-N50 -> 2849.5
A51: ---- | B51: weitere Interessenvertetungen | M51: 0 | N51: 0 | O51: =M51-N51 -> 0
A52: Zwischensumme: | M52: =SUM(M48:M51) -> 6100 | N52: =SUM(N48:N51) -> 1250.5 | O52: =SUM(O48:O51) -> 4849.5
A53: Gesamtsumme: | J53: =SUM(J46,J41,J36,J21) -> 60775 | K53: =SUM(K46,K41,K36,K21) -> 1312.48 | L53: =SUM(L46,L41,L36,L21) -> -59462.52 | M53: =SUM(M52,M46,M41,M36,M21) -> 258820 | N53: =SUM(N52,N46,N41,N36,N21) -> 52278.74 | O53: =SUM(O52,O46,O41,O36,O21) -> 206937.24 | P53: =SUM(P21,P36,P46) -> 37620 | Q53: =SUM(Q46,Q36,Q21) -> 9.34 | R53: =SUM(R46,R36,R21) -> 37610 | S53: =SUM(S46,S36,S21) -> 45600

Sheet Detailblatt II
A1: Detailblatt II | B1: Jahr - | C1: ='Detailblatt I'!F1 -> 2020 | E1: Häufigkeit | F1: Einnahmen | I1: Ausgaben
F2: PLAN | G2: IST | H2: SALDO | I2: PLAN | J2: IST | K2: SALDO
A3: Konferenz Sächsischer Studierendenschaften
A4: Finanzvereinbarung | E4: 1 | F4: 0 | G4: 0 | H4: =G4-F4 -> 0 | I4: 1350 | J4: 0 | K4: =I4-J4 -> 1350
A5: Förderung der KSS (so auch Domain kss-sachsen.de) | E5: 1 | F5: 0 | G5: 0 | H5: =G5-F5 -> 0 | I5: 650 | J5: 0 | K5: =I5-J5 -> 650
D6: Zwischensumme: | F6: =SUM(F4:F5) -> 0 | G6: =SUM(G4:G5) -> 0 | H6: =SUM(H4:H5) -> 0 | I6: 2000 | J6: 0 | K6: 2000
A7: Interessenvertretungen der Studentinnen- und Studentenschaften
A8: faranto e.V. | F8: 0 | G8: 0 | H8: =G8-F8 -> 0 | I8: 600 | J8: 0 | K8: =I8-J8 -> 600
A9: freier zusammenschluss von studentInnenschaften (fzs) e.V. | E9: 1 | F9: 0 | G9: 0 | H9: =G9-F9 -> 0 | I9: 3500 | J9: 1250.5 | K9: =I9-J9 -> 2249.5
A10: weitere | F10: 0 | G10: 0 | H10: =G10-F10 -> 0 | I10: 0 | J10: 0 | K10: =I10-J10 -> 0
D11: Zwischensumme: | F11: =SUM(F8:F10) -> 0 | G11: =SUM(G8:G10) -> 0 | H11: 0 | I11: 4100 | J11: 1250.5 | K11: 2849.5
A12: Beitragseinnahmen
A13: Anteilig WS 19/20 | B13: 18 | C13: x Studierende | D13: 4649 | E13: 1 | F13: =ROUND((($B$13*$D$13)/6)*2,-2) -> 27900 | G13: 27894 | H13: =G13-F13 -> -6 | I13: 0 | J13: 0 | K13: =I13-J13 -> 0
A14: SoSe 20 | B14: 15.5 | D14: 4184 | E14: 1 | F14: =ROUND($B$14*$D$14,-2) -> 64900 | G14: 64852 | H14: =G14-F14 -> -48 | I14: 0 | J14: 0 | K14: =I14-J14 -> 0
A15: Anteilig WS 20/21 | B15: 17 | D15: 4650 | E15: 1 | F15: =ROUND((($B$15*$D$15)/6)*4,-2) -> 52700 | G15: 0 | H15: =G15-F15 -> -52700 | I15: 0 | J15: 0 | K15: =I15-J15 -> 0
D16: Zwischensumme: | F16: =SUM(F13:F15) -> 145500 | G16: =SUM(G13:G15) -> 92746 | H16: =SUM(H13:H15) -> -52754 | I16: 0 | J16: 0 | K16: 0
A17: Vermögen
A18: Verfügbare finanzielle Mittel | F18: ='fortgeschr. Mittel+Konto'!D9 -> 133211.56 | H18: =G18-F18 -> -133211.56 | I18: 0 | J18: 0 | K18: =I18-J18 -> 0
A19: angeordnete Vermögensänderung lt. FO | F19: =Deckblatt!C7 -> 0 | H19: 0 | I19: =IF(F18<Mindestreserve!D17,Mindestreserve!D17-F18,0) -> 0 | K19: =I19-J19 -> 0
A20: Zinsen auf Vermögen | F20: 0 | G20: 0 | H20: 0 | I20: 0 | J20: 0 | K20: =I20-J20 -> 0
A21: geplante Veränderung des Vermögens Ansparen/Entnahme | F21: =Deckblatt!C6*(-1) -> -26705 | G21: 0 | H21: 26705 | I21: =Deckblatt!F6 -> 0 | J21: 0 | K21: =I21-J21 -> 0
D22: Zwischensumme: | F22: =SUM(F18:F21) -> 106506.56 | G22: 0 | H22: -106506.56 | I22: 0 | J22: 0 | K22: 0
A23: Gesamtsumme: | F23: =SUM(F16,F11,F6) -> 145500 | G23: =SUM(G16,G11,G6) -> 92746 | H23: =SUM(H16,H11,H6) -> -52754 | I23: =SUM(I16,I11,I6) -> 6100 | J23: =SUM(J16,J11,J6) -> 1250.5 | K23: 4849.5

Sheet Konferenzen
A1: Konferenzen | B1: Häufigkeit | C1: Einnahmen | F1: Ausgaben | I1: nachrangig verwendbares Vj. Budget | J1: davon verwendet | K1: Zuführung "Fortgeschr. finanz. Mittel" | L1: Übertrag ins nächste HH-Jahr | M1: §5 Abs.4 S.2 FO
C2: PLAN | D2: IST | E2: SALDO | F2: PLAN | G2: IST | H2: SALDO
A3: O.S.T. (Bereich Bund/Land) / Hochschulpolitik | B3: 1 | C3: 0 | D3: 0 | E3: =D3-C3 -> 0 | F3: 500 | G3: 0 | H3: =F3-G3 -> 500 | I3: 1000 | J3: =IF(H3<0,IF(I3>0,IF((H3*(-1))>I3,I3,H3*(-1)),0),0) -> 0 | K3: =IF(OR(J3>I3,H3+I3<0),makro1(),ROUNDDOWN(I3-J3,-1)) -> 1000 | L3: =IF(H3>0,ROUNDDOWN(H3,-1),0) -> 500 | M3: =(D3-G3+J3)-(C3-F3) -> 500
A4: BuFaTa / FSR | B4: 0.5 | C4: 0 | D4: 0 | E4: =D4-C4 -> 0 | F4: 1000 | G4: 0 | H4: =F4-G4 -> 1000 | I4: 1000 | J4: 0 | K4: =IF(OR(J4>I4,H4+I4<0),makro1(),ROUNDDOWN(I4-J4,-1)) -> 1000 | L4: 1000 | M4: =(D4-G4+J4)-(C4-F4) -> 1000
A5: BuFaK WiSo 2020 (einmalig!) | B5: 1 | C5: 44525 | D5: 0 | E5: =D5-C5 -> -44525 | F5: 45525 | G5: 0 | H5: =F5-G5 -> 45525 | M5: =(D5-G5+J5)-(C5-F5) -> 1000
A6: CoCo-Pauschale | B6: 1 | C6: 0 | D6: 0 | E6: =D6-C6 -> 0 | F6: 250 | G6: 0 | H6: =F6-G6 -> 250 | M6: 250
A7: Gesamtsumme: | C7: =SUM(C3:C6) -> 44525 | D7: 0 | E7: -44525 | F7: =SUM(F3:F6) -> 47275 | G7: 0 | H7: 47275 | I7: =SUM(I3:I6) -> 2000 | J7: =SUM(J3:J6) -> 0 | K7: =SUM(K3:K6) -> 2000 | L7: =SUM(L3:L6) -> 1500 | M7: 2750

Sheet Personal
A1: Schulungen | B1: Häufigkeit | C1: Einnahmen | F1: Ausgaben | I1: nachrangig verwendbares Vj. Budget | J1: davon verwendet | K1: Zuführung "Fortgeschr. finanz. Mittel" | L1: Übertrag ins nächste HH-Jahr | M1: §5 Abs.4 S.2 FO
C2: PLAN | D2: IST | E2: SALDO | F2: PLAN | G2: IST | H2: SALDO
A3: Akkreditierung / Qualitätsmanagement | B3: 1 | C3: 0 | D3: 0 | E3: =D3-C3 -> 0 | F3: 2500 | G3: 0 | H3: =F3-G3 -> 2500 | I3: 0 | J3: =IF(H3<0,IF(I3>0,IF((H3*(-1))>I3,I3,H3*(-1)),0),0) -> 0 | K3: =IF(OR(J3>I3,H3+I3<0),makro1(),ROUNDDOWN(I3-J3,-1)) -> 0 | L3: =IF(H3>0,ROUNDDOWN(H3,-1),0) -> 2500 | M3: =(D3-G3+J3)-(C3-F3) -> 2500
A4: Sozialberatung (BaföG, Jobberatung) / Soziales | B4: 1 | C4: 0 | D4: 0 | E4: =D4-C4 -> 0 | F4: 50 | G4: 0 | H4: =F4-G4 -> 50 | I4: 150 | J4: =IF(H4<0,IF(I4>0,IF((H4*(-1))>I4,I4,H4*(-1)),0),0) -> 0 | K4: =IF(OR(J4>I4,H4+I4<0),makro1(),ROUNDDOWN(I4-J4,-1)) -> 150 | L4: =IF(H4>0,ROUNDDOWN(H4,-1),0) -> 50 | M4: =(D4-G4+J4)-(C4-F4) -> 50
A5: Schulungen studentische und akademische Selbstverwaltung (Studienprüfungsordnung) / Studium | B5: 1 | C5: 0 | D5: 0 | E5: 0 | F5: 100 | G5: 0 | H5: 100 | I5: 0 | J5: 0 | K5: =IF(OR(J5>I5,H5+I5<0),makro1(),ROUNDDOWN(I5-J5,-1)) -> 0 | L5: 100 | M5: 100
A6: Prüfungsangelegenheiten / Studium | B6: 1 | C6: 0 | D6: 0 | E6: 0 | F6: 50 | G6: 0 | H6: 50 | I6: 150 | J6: 0 | K6: =IF(OR(J6>I6,H6+I6<0),makro1(),ROUNDDOWN(I6-J6,-1)) -> 150 | L6: 50 | M6: 50
A7: pol. Bildung, Antidiskriminierung, Gender- / Hochschulpolitik | B7: 1 | C7: 0 | D7: 0 | E7: 0 | F7: 150 | G7: 0 | H7: 150 | I7: 150 | J7: 0 | K7: =IF(OR(J7>I7,H7+I7<0),makro1(),ROUNDDOWN(I7-J7,-1)) -> 150 | L7: 150 | M7: 150
A8: Konstituierungsseminar (KoSe) / StuRa | B8: 1 | C8: 0 | D8: 0 | E8: 0 | F8: 500 | G8: 0 | H8: 500 | I8: 770 | J8: 0 | K8: =IF(OR(J8>I8,H8+I8<0),makro1(),ROUNDDOWN(I8-J8,-1)) -> 770 | L8: 500 | M8: 500
A9: Lern- und Informationsseminar (LuISe) / StuRa | B9: 1 | C9: 0 | D9: 0 | E9: 0 | F9: 2500 | G9: 0 | H9: 2500 | I9: 0 | J9: 0 | K9: =IF(OR(J9>I9,H9+I9<0),makro1(),ROUNDDOWN(I9-J9,-1)) -> 0 | L9: 2500 | M9: 2500
A10: Study Night o.ä. | B10: 1 | C10: 250 | D10: 0 | E10: -250 | F10: 550 | G10: 0 | H10: 550 | I10: 500 | J10: 0 | K10: =IF(OR(J10>I10,H10+I10<0),makro1(),ROUNDDOWN(I10-J10,-1)) -> 500 | L10: 550 | M10: 300
A11: CLearance And Rapprochement (CLARA) / StuRa | B11: 1 | C11: 0 | D11: 0 | E11: 0 | F11: 50 | G11: 0 | H11: 50 | I11: 100 | J11: 0 | K11: =IF(OR(J11>I11,H11+I11<0),makro1(),ROUNDDOWN(I11-J11,-1)) -> 100 | L11: 50 | M11: 50
A12: Veranstaltung zur fachlichen Weiterbildung / Studium | B12: 1 | C12: 1400 | D12: 0 | E12: -1400 | F12: 1500 | G12: 0 | H12: 1500 | I12: 0 | J12: 0 | K12: =IF(OR(J12>I12,H12+I12<0),makro1(),ROUNDDOWN(I12-J12,-1)) -> 0 | L12: 1500 | M12: 100
A13: CoCo-Pauschale | B13: 1 | C13: 0 | D13: 0 | E13: 0 | F13: 250 | G13: 0 | H13: 250
A14: Zwischensumme: | C14: =SUM(C3:C13) -> 1650 | D14: =SUM(D3:D13) -> 0 | E14: -1650 | F14: 8200 | G14: 0 | H14: 8200 | I14: =SUM(I3:I13) -> 1820 | J14: =SUM(J3:J13) -> 0 | K14: =SUM(K3:K13) -> 1820 | L14: =SUM(L3:L13) -> 7950 | M14: =(D14-G14+J14)-(C14-F14) -> 6550
A16: Wahlen | B16: Häufigkeit | C16: Einnahmen | F16: Ausgaben | I16: nachrangig verwendbares Vj. Budget | J16: davon verwendet | K16: Zuführung "Fortgeschr. finanz. Mittel" | L16: Übertrag ins nächste HH-Jahr | M16: §5 Abs.4 S.2 FO
C17: PLAN | D17: IST | E17: SALDO | F17: PLAN | G17: IST | H17: SALDO
A18: Informationen zu Wahlen | B18: 2 | C18: 0 | D18: 0 | E18: =D18-C18 -> 0 | F18: 150 | G18: 0 | H18: =F18-G18 -> 150 | I18: 150 | J18: =IF(H18<0,IF(I18>0,IF((H18*(-1))>I18,I18,H18*(-1)),0),0) -> 0 | K18: =IF(OR(J18>I18,H18+I18<0),makro1(),ROUNDDOWN(I18-J18,-1)) -> 150 | L18: =IF(H18>0,ROUNDDOWN(H18,-1),0) -> 150 | M18: =(D18-G18+J18)-(C18-F18) -> 150
A19: Zwischensumme: | C19: =C18 -> 0 | D19: 0 | E19: 0 | F19: 150 | G19: 0 | H19: 150 | I19: =SUM(I18) -> 150 | J19: =SUM(J18) -> 0 | K19: =SUM(K18) -> 150 | L19: =SUM(L18) -> 150 | M19: 150
A21: Gesamtsumme: | C21: =SUM(C14+C19) -> 1650 | D21: =SUM(D14+D19) -> 0 | E21: -1650 | F21: 8350 | G21: 0 | H21: 8350 | I21: =SUM(I14+I19) -> 1970 | J21: 0 | K21: 1970 | L21: 8100 | M21: =(D21-G21+J21)-(C21-F21) -> 6700

Sheet Finanzen
A1: Referat Finanzen | C1: Häufigkeit | D1: Einnahmen | G1: Ausgaben
D2: PLAN | E2: IST | F2: SALDO | G2: PLAN | H2: IST | I2: SALDO
A3: Kontoführung mit online-banking | B3: Sachkonto: 4970 | C3: 12 | D3: 0 | E3: 0 | F3: =E3-D3 -> 0 | G3: 400 | H3: 358.59 | I3: =G3-H3 -> 41.41
A4: Buchhaltungssoftware AGENDA | B4: Sachkonto: 4955 | C4: 12 | D4: 0 | E4: 0 | F4: =E4-D4 -> 0 | G4: 1000 | H4: 410.55 | I4: =G4-H4 -> 589.45
A5: CoCo-Pauschale | D5: 0 | E5: 0 | F5: =E5-D5 -> 0 | G5: 250 | H5: 0 | I5: =G5-H5 -> 250
A6: Gesamtsumme: | D6: =SUM(D3:D5) -> 0 | E6: 0 | F6: 0 | G6: 1650 | H6: 769.14 | I6: 880.86

Sheet Hochschulpolitik
A1: Referat Hochschulpolitik | B1: Häufigkeit | C1: Einnahmen | F1: Ausgaben | I1: nachrangig verwendbares Vj. Budget | J1: davon verwendet | K1: Zuführung "Fortgeschr. finanz. Mittel" | L1: Übertrag ins nächste HH-Jahr | M1: §5 Abs.4 S.2 FO
C2: PLAN | D2: IST | E2: SALDO | F2: PLAN | G2: IST | H2: SALDO
A3: "festival contre le rasism" | B3: 1 | C3: 0 | D3: 0 | E3: =D3-C3 -> 0 | F3: 0 | G3: 0 | H3: =F3-G3 -> 0 | I3: 200 | J3: =IF(H3<0,IF(I3>0,IF((H3*(-1))>I3,I3,H3*(-1)),0),0) -> 0 | K3: =IF(OR(J3>I3,H3+I3<0),makro1(),ROUNDDOWN(I3-J3,-1)) -> 200 | L3: =IF(H3>0,ROUNDDOWN(H3,-1),0) -> 0 | M3: =(D3-G3+J3)-(C3-F3) -> 0
A4: Aktionstage gegen Sexismus und Homophobie | B4: 1 | C4: 0 | D4: 0 | E4: =D4-C4 -> 0 | F4: 100 | G4: 0 | H4: =F4-G4 -> 100 | I4: 0 | J4: 0 | K4: =IF(OR(J4>I4,H4+I4<0),makro1(),ROUNDDOWN(I4-J4,-1)) -> 0 | L4: =IF(H4>0,ROUNDDOWN(H4,-1),0) -> 100 | M4: =(D4-G4+J4)-(C4-F4) -> 100
A5: Aktionen, Festivals und Demonstrationen | C5: 0 | D5: 0 | E5: =D5-C5 -> 0 | F5: 150 | G5: 0 | H5: =F5-G5 -> 150 | I5: 220 | J5: 0 | K5: =IF(OR(J5>I5,H5+I5<0),makro1(),ROUNDDOWN(I5-J5,-1)) -> 220 | L5: 150 | M5: 150
A6: Förderverein HTW Dresden - Mitgliedsbeitrag | B6: 1 | C6: 0 | D6: 0 | E6: =D6-C6 -> 0 | F6: 150 | G6: 150 | H6: =F6-G6 -> 0 | I6: 0 | J6: 0 | K6: =IF(OR(J6>I6,H6+I6<0),makro1(),ROUNDDOWN(I6-J6,-1)) -> 0 | L6: 0 | M6: 0
A7: politische Bildung / Umweltbildung | C7: 0 | D7: 0 | E7: =D7-C7 -> 0 | F7: 450 | G7: 0 | H7: =F7-G7 -> 450 | I7: 350 | J7: 0 | K7: =IF(OR(J7>I7,H7+I7<0),makro1(),ROUNDDOWN(I7-J7,-1)) -> 350 | L7: 450 | M7: 450
A8: Gesamtsumme: | C8: =SUM(C3:C7) -> 0 | D8: 0 | E8: 0 | F8: 850 | G8: 150 | H8: 700 | I8: 770 | J8: 0 | K8: 770 | L8: 700 | M8: 700

Sheet Internationales
A1: Referat Internationales | B1: Häufigkeit | C1: Einnahmen | F1: Ausgaben | I1: nachrangig verwendbares Vj. Budget | J1: davon verwendet | K1: Zuführung "Fortgeschr. finanz. Mittel" | L1: Übertrag ins nächste HH-Jahr | M1: §5 Abs.4 S.2 FO
C2: PLAN | D2: IST | E2: SALDO | F2: PLAN | G2: IST | H2: SALDO
A3: Erasmus Student Network | C3: 0 | D3: 0 | E3: =D3-C3 -> 0 | F3: 350 | G3: 0 | H3: =F3-G3 -> 350 | I3: 0 | J3: =IF(H3<0,IF(I3>0,IF((H3*(-1))>I3,I3,H3*(-1)),0),0) -> 0 | K3: =IF(OR(J3>I3,H3+I3<0),makro1(),ROUNDDOWN(I3-J3,-1)) -> 0 | L3: =IF(H3>0,ROUNDDOWN(H3,-1),0) -> 350 | M3: =(D3-G3+J3)-(C3-F3) -> 350
A4: DAAD Mitgliedsbeitrag | B4: 1 | C4: 0 | D4: 0 | E4: =D4-C4 -> 0 | F4: 50 | G4: 50 | H4: =F4-G4 -> 0 | I4: 0 | J4: 0 | K4: =IF(OR(J4>I4,H4+I4<0),makro1(),ROUNDDOWN(I4-J4,-1)) -> 0 | L4: =IF(H4>0,ROUNDDOWN(H4,-1),0) -> 0 | M4: =(D4-G4+J4)-(C4-F4) -> 0
A5: Internationaler Tag | B5: 1 | C5: 0 | D5: 0 | E5: =D5-C5 -> 0 | F5: 50 | G5: 0 | H5: =F5-G5 -> 50 | I5: 0 | J5: 0 | K5: =IF(OR(J5>I5,H5+I5<0),makro1(),ROUNDDOWN(I5-J5,-1)) -> 0 | L5: 50 | M5: 50
A6: CoCo-Pauschale | C6: 0 | D6: 0 | E6: =D6-C6 -> 0 | F6: 250 | G6: 0 | H6: =F6-G6 -> 250
A7: Gesamtsumme: | C7: =SUM(C3:C6) -> 0 | D7: 0 | E7: 0 | F7: 700 | G7: 50 | H7: 650 | I7: =SUM(I3:I6) -> 0 | J7: =SUM(J3:J6) -> 0 | K7: =SUM(K3:K6) -> 0 | L7: =SUM(L3:L6) -> 400 | M7: =(D7-G7+J7)-(C7-F7) -> 650

Sheet Kultur
A1: Referat Kultur | B1: Häufigkeit | C1: Einnahmen | F1: Ausgaben | I1: nachrangig verwendbares Vj. Budget | J1: davon verwendet | K1: Zuführung "Fortgeschr. finanz. Mittel" | L1: Übertrag ins nächste HH-Jahr | M1: §5 Abs.4 S.2 FO
C2: PLAN | D2: IST | E2: SALDO | F2: PLAN | G2: IST | H2: SALDO
A3: Semestereröffnungspartys (SEP) | B3: 1 | C3: 500 | D3: 0 | E3: =D3-C3 -> -500 | F3: 1000 | G3: 0 | H3: =F3-G3 -> 1000 | I3: 510 | J3: =IF(H3<0,IF(I3>0,IF((H3*(-1))>I3,I3,H3*(-1)),0),0) -> 0 | K3: =IF(OR(J3>I3,H3+I3<0),makro1(),ROUNDDOWN(I3-J3,-1)) -> 510 | L3: =IF(H3>0,ROUNDDOWN(H3,-1),0) -> 1000 | M3: =(D3-G3+J3)-(C3-F3) -> 500
A4: Kino in der Hochschule | C4: 200 | D4: 67.5 | E4: -132.5 | F4: 600 | G4: 244.82 | H4: 355.18 | I4: 0 | J4: 0 | K4: =IF(OR(J4>I4,H4+I4<0),makro1(),ROUNDDOWN(I4-J4,-1)) -> 0 | L4: =IF(H4>0,ROUNDDOWN(H4,-1),0) -> 350 | M4: =(D4-G4+J4)-(C4-F4) -> 222.68
A5: Rockkonzert | B5: 1 | C5: 500 | D5: 0 | E5: -500 | F5: 1000 | G5: 0 | H5: 1000 | I5: 650 | J5: 0 | K5: =IF(OR(J5>I5,H5+I5<0),makro1(),ROUNDDOWN(I5-J5,-1)) -> 650 | L5: 1000 | M5: =(D5-G5+J5)-(C5-F5) -> 500
A6: Spieleabende | B6: 2 | C6: 0 | D6: 0 | E6: =D6-C6 -> 0 | F6: 0 | G6: 0 | H6: =F6-G6 -> 0 | I6: 150 | J6: =IF(H6<0,IF(I6>0,IF((H6*(-1))>I6,I6,H6*(-1)),0),0) -> 0 | K6: =IF(OR(J6>I6,H6+I6<0),makro1(),ROUNDDOWN(I6-J6,-1)) -> 150 | L6: 0 | M6: =(D6-G6+J6)-(C6-F6) -> 0
A7: Dies Academicus | B7: 1 | C7: 0 | D7: 0 | E7: 0 | F7: 0 | G7: 0 | H7: 0 | I7: 350 | J7: 0 | K7: =IF(OR(J7>I7,H7+I7<0),makro1(),ROUNDDOWN(I7-J7,-1)) -> 350 | L7: =IF(H7>0,ROUNDDOWN(H7,-1),0) -> 0 | M7: 0
A8: LAN-Partys | B8: 1 | C8: 600 | D8: 0 | E8: -600 | F8: 600 | G8: 0 | H8: 600 | I8: 100 | J8: 0 | K8: =IF(OR(J8>I8,H8+I8<0),makro1(),ROUNDDOWN(I8-J8,-1)) -> 100 | L8: 600 | M8: 0
A9: Fakfeste & Sommerfeste | C9: 1000 | D9: 585 | E9: =D9-C9 -> -415 | F9: 1500 | G9: 266.63 | H9: =F9-G9 -> 1233.37 | I9: 0 | J9: =IF(H9<0,IF(I9>0,IF((H9*(-1))>I9,I9,H9*(-1)),0),0) -> 0 | K9: =IF(OR(J9>I9,H9+I9<0),makro1(),ROUNDDOWN(I9-J9,-1)) -> 0 | L9: =IF(H9>0,ROUNDDOWN(H9,-1),0) -> 1230 | M9: =(D9-G9+J9)-(C9-F9) -> 818.37
A10: Erstifahrten | C10: 3500 | D10: 0 | E10: =D10-C10 -> -3500 | F10: 4000 | G10: 0 | H10: =F10-G10 -> 4000 | I10: 0 | J10: =IF(H10<0,IF(I10>0,IF((H10*(-1))>I10,I10,H10*(-1)),0),0) -> 0 | K10: =IF(OR(J10>I10,H10+I10<0),makro1(),ROUNDDOWN(I10-J10,-1)) -> 0 | L10: =IF(H10>0,ROUNDDOWN(H10,-1),0) -> 4000 | M10: =(D10-G10+J10)-(C10-F10) -> 500
A11: Weihnachtsfeiern | C11: 3500 | D11: 0 | E11: =D11-C11 -> -3500 | F11: 4500 | G11: 0 | H11: =F11-G11 -> 4500 | I11: 0 | J11: =IF(H11<0,IF(I11>0,IF((H11*(-1))>I11,I11,H11*(-1)),0),0) -> 0 | K11: =IF(OR(J11>I11,H11+I11<0),makro1(),ROUNDDOWN(I11-J11,-1)) -> 0 | L11: =IF(H11>0,ROUNDDOWN(H11,-1),0) -> 4500 | M11: =(D11-G11+J11)-(C11-F11) -> 1000
A12: CoCo-Pauschale | C12: 0 | D12: 0 | E12: =D12-C12 -> 0 | F12: 0 | G12: 0 | H12: =F12-G12 -> 0
A13: Teambuilding (Gruppenkuscheln?) | B13: 1 | C13: 3000 | D13: 150 | E13: -2850 | F13: 4500 | G13: 139.88 | H13: 4360.12 | I13: 0 | J13: 0 | K13: =IF(OR(J13>I13,H13+I13<0),makro1(),ROUNDDOWN(I13-J13,-1)) -> 0 | L13: 4360 | M13: 1510.12
A14: Gesamtsumme: | C14: =SUM(C3:C13) -> 12800 | D14: 802.5 | E14: -11997.5 | F14: 17700 | G14: 651.33 | H14: 17048.67 | I14: =SUM(I3:I13) -> 1760 | J14: 0 | K14: 1760 | L14: 17040 | M14: =(D14-G14+J14)-(C14-F14) -> 5051.17

Sheet Öffentlichkeitsarbeit
A1: Referat Öffentlichkeitsarbeit | B1: Häufigkeit | C1: Einnahmen | F1: Ausgaben | I1: nachrangig verwendbares Vj. Budget | J1: davon verwendet | K1: Zuführung "Fortgeschr. finanz. Mittel" | L1: Übertrag ins nächste HH-Jahr | M1: §5 Abs.4 S.2 FO
C2: PLAN | D2: IST | E2: SALDO | F2: PLAN | G2: IST | H2: SALDO
A3: Druck Hochschul-ABC (Anteilig) | B3: 1 | C3: 0 | D3: 0 | E3: =D3-C3 -> 0 | F3: 450 | G3: 0 | H3: =F3-G3 -> 450 | I3: 850 | J3: =IF(H3<0,IF(I3>0,IF((H3*(-1))>I3,I3,H3*(-1)),0),0) -> 0 | K3: =IF(OR(J3>I3,H3+I3<0),makro1(),ROUNDDOWN(I3-J3,-1)) -> 850 | L3: =IF(H3>0,ROUNDDOWN(H3,-1),0) -> 450 | M3: =(D3-G3+J3)-(C3-F3) -> 450
A4: Hochschulveranstaltungen | B4: 2 | C4: 0 | D4: 0 | E4: 0 | F4: 200 | G4: 0 | H4: 200 | I4: 0 | J4: 0 | K4: =IF(OR(J4>I4,H4+I4<0),makro1(),ROUNDDOWN(I4-J4,-1)) -> 0 | L4: =IF(H4>0,ROUNDDOWN(H4,-1),0) -> 200 | M4: =(D4-G4+J4)-(C4-F4) -> 200
A5: Werbemittel | C5: 0 | D5: 0 | E5: 0 | F5: 1250 | G5: 240.04 | H5: 1009.96 | I5: 0 | J5: 0 | K5: =IF(OR(J5>I5,H5+I5<0),makro1(),ROUNDDOWN(I5-J5,-1)) -> 0 | L5: 1000 | M5: 1009.96
A6: Interessiertengrillen | B6: 2 | C6: 0 | D6: 0 | E6: 0 | F6: 0 | G6: 0 | H6: 0 | I6: 250 | J6: 0 | K6: =IF(OR(J6>I6,H6+I6<0),makro1(),ROUNDDOWN(I6-J6,-1)) -> 250 | L6: 0 | M6: 0
A7: CoCo-Pauschale | C7: 0 | D7: 0 | E7: 0 | F7: 0 | G7: 0 | H7: 0
A8: Merchandise u.ä. | C8: 500 | D8: 60 | E8: -440 | F8: 1000 | G8: 771.12 | H8: 228.88 | I8: 1500 | J8: 0 | K8: =IF(OR(J8>I8,H8+I8<0),makro1(),ROUNDDOWN(I8-J8,-1)) -> 1500 | L8: 220 | M8: -211.12
A9: Gesamtsumme: | C9: =SUM(C3:C8) -> 500 | D9: 60 | E9: -440 | F9: 2900 | G9: 1011.16 | H9: 1888.84 | I9: 2600 | J9: 0 | K9: 2600 | L9: 1870 | M9: 1448.84

Sheet Qualitätsmanagement
A1: Referat Qualitätsmanagement | B1: Häufigkeit | C1: Einnahmen | F1: Ausgaben | I1: nachrangig verwendbares Vj. Budget | J1: davon verwendet | K1: Zuführung "Fortgeschr. finanz. Mittel" | L1: Übertrag ins nächste HH-Jahr | M1: §5 Abs.4 S.2 FO
C2: PLAN | D2: IST | E2: SALDO | F2: PLAN | G2: IST | H2: SALDO
A3: Veranstaltung zu Erste Hilfe | B3: 2 | C3: 0 | D3: 0 | E3: =D3-C3 -> 0 | F3: 0 | G3: 0 | H3: =F3-G3 -> 0 | I3: 0 | J3: =IF(H3<0,IF(I3>0,IF((H3*(-1))>I3,I3,H3*(-1)),0),0) -> 0 | K3: =IF(OR(J3>I3,H3+I3<0),makro1(),ROUNDDOWN(I3-J3,-1)) -> 0 | L3: =IF(H3>0,ROUNDDOWN(H3,-1),0) -> 0 | M3: =(D3-G3+J3)-(C3-F3) -> 0
A4: Erstsemestereinführung (ESE) | B4: 1 | C4: 0 | D4: 0 | E4: =D4-C4 -> 0 | F4: 2000 | G4: 0 | H4: =F4-G4 -> 2000 | I4: 2190 | J4: =IF(H4<0,IF(I4>0,IF((H4*(-1))>I4,I4,H4*(-1)),0),0) -> 0 | K4: =IF(OR(J4>I4,H4+I4<0),makro1(),ROUNDDOWN(I4-J4,-1)) -> 2190 | L4: =IF(H4>0,ROUNDDOWN(H4,-1),0) -> 2000 | M4: =(D4-G4+J4)-(C4-F4) -> 2000
A5: CoCo-Pauschale | C5: 0 | D5: 0 | E5: =D5-C5 -> 0 | F5: 250 | G5: 0 | H5: =F5-G5 -> 250
A6: Gesamtsumme: | C6: =SUM(C3:C5) -> 0 | D6: =SUM(D3:D5) -> 0 | E6: 0 | F6: 2250 | G6: 0 | H6: 2250 | I6: 2190 | J6: 0 | K6: 2190 | L6: 2000 | M6: 2000

Sheet Soziales
A1: Referat Soziales | B1: Häufigkeit | C1: Einnahmen | F1: Ausgaben | I1: nachrangig verwendbares Vj. Budget | J1: davon verwendet | K1: Zuführung "Fortgeschr. finanz. Mittel" | L1: Übertrag ins nächste HH-Jahr | M1: §5 Abs.4 S.2 FO
C2: PLAN | D2: IST | E2: SALDO | F2: PLAN | G2: IST | H2: SALDO
A3: Projekt "Studieren mit Kind" | C3: 0 | D3: 0 | E3: =D3-C3 -> 0 | F3: 200 | G3: 0 | H3: =F3-G3 -> 200 | I3: 0 | J3: =IF(H3<0,IF(I3>0,IF((H3*(-1))>I3,I3,H3*(-1)),0),0) -> 0 | K3: =IF(OR(J3>I3,H3+I3<0),makro1(),ROUNDDOWN(I3-J3,-1)) -> 0 | L3: =IF(H3>0,ROUNDDOWN(H3,-1),0) -> 200 | M3: =(D3-G3+J3)-(C3-F3) -> 200
A4: Projekt Studieren mit Beeinträchtigung | C4: 0 | D4: 0 | E4: =D4-C4 -> 0 | F4: 100 | G4: 0 | H4: =F4-G4 -> 100 | I4: 200 | J4: =IF(H4<0,IF(I4>0,IF((H4*(-1))>I4,I4,H4*(-1)),0),0) -> 0 | K4: =IF(OR(J4>I4,H4+I4<0),makro1(),ROUNDDOWN(I4-J4,-1)) -> 200 | L4: =IF(H4>0,ROUNDDOWN(H4,-1),0) -> 100 | M4: =(D4-G4+J4)-(C4-F4) -> 100
A5: Veranstaltungen zu sozialen Belangen | B5: 2 | C5: 0 | D5: 0 | E5: =D5-C5 -> 0 | F5: 150 | G5: 0 | H5: =F5-G5 -> 150 | I5: 820 | J5: 0 | K5: =IF(OR(J5>I5,H5+I5<0),makro1(),ROUNDDOWN(I5-J5,-1)) -> 820 | L5: =IF(H5>0,ROUNDDOWN(H5,-1),0) -> 150 | M5: =(D5-G5+J5)-(C5-F5) -> 150
A6: Finanzielle Nothilfe (Covid-19) | C6: 0 | D6: 0 | E6: =D6-C6 -> 0 | F6: 15000 | G6: 0 | H6: =F6-G6 -> 15000
A7: CoCo-Pauschale | C7: 0 | D7: 0 | E7: 0 | F7: 200 | G7: 0 | H7: 200
A8: Gesamtsumme: | C8: =SUM(C3:C7) -> 0 | D8: 0 | E8: 0 | F8: 15650 | G8: 0 | H8: 15650 | I8: 1020 | J8: 0 | K8: 1020 | L8: 450 | M8: 15650

Sheet Sport
A1: Referat Sport | B1: Häufigkeit | C1: Einnahmen | F1: Ausgaben | I1: nachrangig verwendbares Vj. Budget | J1: davon verwendet | K1: Zuführung "Fortgeschr. finanz. Mittel" | L1: Übertrag ins nächste HH-Jahr | M1: §5 Abs.4 S.2 FO
C2: PLAN | D2: IST | E2: SALDO | F2: PLAN | G2: IST | H2: SALDO
A3: Truniere, Preise, Beiträge | C3: 0 | D3: 0 | E3: =D3-C3 -> 0 | F3: 250 | G3: 0 | H3: =F3-G3 -> 250 | I3: 600 | J3: =IF(H3<0,IF(I3>0,IF((H3*(-1))>I3,I3,H3*(-1)),0),0) -> 0 | K3: =IF(OR(J3>I3,H3+I3<0),makro1(),ROUNDDOWN(I3-J3,-1)) -> 600 | L3: =IF(H3>0,ROUNDDOWN(H3,-1),0) -> 250 | M3: =(D3-G3+J3)-(C3-F3) -> 250
A4: Startgebühren | B4: 1 | C4: 0 | D4: 0 | E4: 0 | F4: 100 | G4: 0 | H4: 100 | I4: 300 | J4: 0 | K4: =IF(OR(J4>I4,H4+I4<0),makro1(),ROUNDDOWN(I4-J4,-1)) -> 300 | L4: =IF(H4>0,ROUNDDOWN(H4,-1),0) -> 100 | M4: =(D4-G4+J4)-(C4-F4) -> 100
A5: Drachenbootrennen | B5: 1 | C5: 0 | D5: 0 | E5: 0 | F5: 0 | G5: 0 | H5: 0 | I5: 0 | J5: 0 | K5: =IF(OR(J5>I5,H5+I5<0),makro1(),ROUNDDOWN(I5-J5,-1)) -> 0 | L5: 0 | M5: 0
A6: sächsische Beachmeisterschaften | B6: 1 | C6: 0 | D6: 0 | E6: 0 | F6: 0 | G6: 0 | H6: 0 | I6: 0 | J6: 0 | K6: =IF(OR(J6>I6,H6+I6<0),makro1(),ROUNDDOWN(I6-J6,-1)) -> 0 | L6: 0 | M6: 0
A7: Hochschulsportfest | B7: 1 | C7: 0 | D7: 0 | E7: 0 | F7: 150 | G7: 0 | H7: 150 | I7: 150 | J7: 0 | K7: =IF(OR(J7>I7,H7+I7<0),makro1(),ROUNDDOWN(I7-J7,-1)) -> 150 | L7: =IF(H7>0,ROUNDDOWN(H7,-1),0) -> 150 | M7: 150
A8: CoCo-Pauschale | C8: 0 | D8: 0 | E8: 0 | F8: 0 | G8: 0 | H8: 0 | I8: 0 | J8: 0 | K8: =IF(OR(J8>I8,H8+I8<0),makro1(),ROUNDDOWN(I8-J8,-1)) -> 0 | L8: 0 | M8: 0
A9: Gesamtsumme: | C9: =SUM(C3:C8) -> 0 | D9: 0 | E9: 0 | F9: 500 | G9: 0 | H9: 500 | I9: =SUM(I3:I8) -> 1050 | J9: =SUM(J3:J8) -> 0 | K9: =SUM(K3:K8) -> 1050 | L9: =SUM(L3:L8) -> 500 | M9: 500

Sheet Studium
A1: Referat Studium | B1: Häufigkeit | C1: Einnahmen | F1: Ausgaben | I1: nachrangig verwendbares Vj. Budget | J1: davon verwendet | K1: Zuführung "Fortgeschr. finanz. Mittel" | L1: Übertrag ins nächste HH-Jahr | M1: §5 Abs.4 S.2 FO
C2: PLAN | D2: IST | E2: SALDO | F2: PLAN | G2: IST | H2: SALDO
A3: Kompetenzorientiertes Prüfen | C3: 0 | D3: 0 | E3: =D3-C3 -> 0 | F3: 0 | G3: 0 | H3: =F3-G3 -> 0 | I3: 0 | J3: =IF(H3<0,IF(I3>0,IF((H3*(-1))>I3,I3,H3*(-1)),0),0) -> 0 | K3: =IF(OR(J3>I3,H3+I3<0),makro1(),ROUNDDOWN(I3-J3,-1)) -> 0 | L3: =IF(H3>0,ROUNDDOWN(H3,-1),0) -> 0 | M3: =(D3-G3+J3)-(C3-F3) -> 0
A4: Systemakkreditierung, was nun? | C4: 0 | D4: 0 | E4: =D4-C4 -> 0 | F4: 0 | G4: 0 | H4: =F4-G4 -> 0 | I4: 0 | J4: 0 | K4: =IF(OR(J4>I4,H4+I4<0),makro1(),ROUNDDOWN(I4-J4,-1)) -> 0 | L4: =IF(H4>0,ROUNDDOWN(H4,-1),0) -> 0 | M4: =(D4-G4+J4)-(C4-F4) -> 0
A5: CoCo-Pauschale | C5: 0 | D5: 0 | E5: =D5-C5 -> 0 | F5: 200 | G5: 0 | H5: =F5-G5 -> 200
A6: Gesamtsumme: | C6: =SUM(C3:C5) -> 0 | D6: 0 | E6: 0 | F6: 200 | G6: 0 | H6: 200 | I6: =SUM(I3:I5) -> 0 | J6: =SUM(J3:J5) -> 0 | K6: =SUM(K3:K5) -> 0 | L6: =SUM(L3:L5) -> 0 | M6: 200

Sheet Studentische Verwaltung
A1: Referat Verwaltung | B1: Häufigkeit | C1: Einnahmen | F1: Ausgaben | I1: nachrangig verwendbares Vj. Budget | J1: davon verwendet | K1: Zuführung "Fortgeschr. finanz. Mittel" | L1: Übertrag ins nächste HH-Jahr | M1: §5 Abs.4 S.2 FO
C2: PLAN | D2: IST | E2: SALDO | F2: PLAN | G2: IST | H2: SALDO
A3: Telefon | C3: 0 | D3: 0 | E3: =D3-C3 -> 0 | F3: 100 | G3: 0 | H3: =F3-G3 -> 100 | I3: 100 | J3: =IF(H3<0,IF(I3>0,IF((H3*(-1))>I3,I3,H3*(-1)),0),0) -> 0 | K3: =IF(OR(J3>I3,H3+I3<0),makro1(),ROUNDDOWN(I3-J3,-1)) -> 100 | L3: =IF(H3>0,ROUNDDOWN(H3,-1),0) -> 100 | M3: =(D3-G3+J3)-(C3-F3) -> 100
A4: Domains | C4: 0 | D4: 0 | E4: =D4-C4 -> 0 | F4: 50 | G4: 59.34 | H4: =F4-G4 -> -9.34 | I4: 30 | J4: 9.34 | K4: =IF(OR(J4>I4,H4+I4<0),makro1(),ROUNDDOWN(I4-J4,-1)) -> 20 | L4: =IF(H4>0,ROUNDDOWN(H4,-1),0) -> 0 | M4: =(D4-G4+J4)-(C4-F4) -> 0
A5: Beitrag Gruppenausweis für Jugendherbergen | B5: 1 | C5: 0 | D5: 0 | E5: 0 | F5: 35 | G5: 0 | H5: 35 | I5: 0 | J5: 0 | K5: =IF(OR(J5>I5,H5+I5<0),makro1(),ROUNDDOWN(I5-J5,-1)) -> 0 | L5: 30 | M5: 35
A6: Labeldrucker (für die ISIC-Ausweise) | B6: 1 | C6: 0 | D6: 0 | E6: 0 | F6: 0 | G6: 0 | H6: 0 | I6: 0 | J6: 0 | K6: =IF(OR(J6>I6,H6+I6<0),makro1(),ROUNDDOWN(I6-J6,-1)) -> 0 | L6: 0 | M6: 0
A7: Vertrieb ISIC | C7: 300 | D7: 54 | E7: -246 | F7: 200 | G7: 0 | H7: 200 | I7: 80 | J7: 0 | K7: =IF(OR(J7>I7,H7+I7<0),makro1(),ROUNDDOWN(I7-J7,-1)) -> 80 | L7: =IF(H7>0,ROUNDDOWN(H7,-1),0) -> 200 | M7: -46
A8: Dienste für elektronische Datenverarbeitung | C8: 0 | D8: 0 | E8: =D8-C8 -> 0 | F8: 1000 | G8: 9.48 | H8: =F8-G8 -> 990.52 | I8: 0 | J8: =IF(H8<0,IF(I8>0,IF((H8*(-1))>I8,I8,H8*(-1)),0),0) -> 0 | K8: =IF(OR(J8>I8,H8+I8<0),makro1(),ROUNDDOWN(I8-J8,-1)) -> 0 | L8: =IF(H8>0,ROUNDDOWN(H8,-1),0) -> 990 | M8: =(D8-G8+J8)-(C8-F8) -> 990.52
A9: Anschaffungen zwecks Umstrukturierung StuRa | C9: 0 | D9: 0 | E9: 0 | F9: 0 | G9: 0 | H9: 0 | I9: 15000 | J9: 0 | K9: =IF(OR(J9>I9,H9+I9<0),makro1(),ROUNDDOWN(I9-J9,-1)) -> 15000 | L9: 0 | M9: 0
A10: andauernde Betreuung Server durch Externe | C10: 0 | D10: 0 | E10: =D10-C10 -> 0 | F10: 0 | G10: 0 | H10: =F10-G10 -> 0 | I10: 2400 | J10: =IF(H10<0,IF(I10>0,IF((H10*(-1))>I10,I10,H10*(-1)),0),0) -> 0 | K10: =IF(OR(J10>I10,H10+I10<0),makro1(),ROUNDDOWN(I10-J10,-1)) -> 2400 | L10: =IF(H10>0,ROUNDDOWN(H10,-1),0) -> 0 | M10: =(D10-G10+J10)-(C10-F10) -> 0
A11: Beiträge/Gebühren | C11: 0 | D11: 0 | E11: 0 | F11: 0 | G11: 0 | H11: 0 | I11: 0 | J11: 0 | K11: =IF(OR(J11>I11,H11+I11<0),makro1(),ROUNDDOWN(I11-J11,-1)) -> 0 | L11: 0 | M11: 0
A12: Büromaterial und -ausstattung | C12: 0 | D12: 0 | E12: 0 | F12: 250 | G12: 0 | H12: 250 | I12: 190 | J12: 0 | K12: =IF(OR(J12>I12,H12+I12<0),makro1(),ROUNDDOWN(I12-J12,-1)) -> 190 | L12: 250 | M12: 250
A13: Studienmaterial (z.B. Bautabellen, Laborkittel, etc.) | C13: 1000 | D13: 0 | E13: =D13-C13 -> -1000 | F13: 1500 | G13: 0 | H13: =F13-G13 -> 1500 | I13: 0 | J13: =IF(H13<0,IF(I13>0,IF((H13*(-1))>I13,I13,H13*(-1)),0),0) -> 0 | K13: =IF(OR(J13>I13,H13+I13<0),makro1(),ROUNDDOWN(I13-J13,-1)) -> 0 | L13: =IF(H13>0,ROUNDDOWN(H13,-1),0) -> 1500 | M13: =(D13-G13+J13)-(C13-F13) -> 500
A14: laufende Kosten für Druck, samt Nebenkosten | C14: 0 | D14: 0 | E14: 0 | F14: 700 | G14: 99.27 | H14: 600.73 | I14: 340 | J14: 0 | K14: =IF(OR(J14>I14,H14+I14<0),makro1(),ROUNDDOWN(I14-J14,-1)) -> 340 | L14: 600 | M14: 600.73
A15: Gesamtsumme: | C15: =SUM(C3:C14) -> 1300 | D15: 54 | E15: -1246 | F15: 3835 | G15: 168.09 | H15: 3666.91 | I15: =SUM(I3:I14) -> 18140 | J15: =SUM(J3:J14) -> 9.34 | K15: =SUM(K3:K14) -> 18130 | L15: =SUM(L3:L14) -> 3670 | M15: 2430.25
